Workbook

Sheet INR
A1: Instituto Municipal de Planeación de Irapuato, Gto. Indicadores de Resultados Del 1 de enero al 31 de Diciembre del 2025
A2: Programa o proyecto de Inversión | F2: Prespuesto del programa presupuestario | K2: MIR | N2: Indicadores | U2: Resultado del indicador
A3: Clasificación Programática acorde al CONAC | B3: Clave del Programa presupuestario | C3: Nombre del programa presupuestario | D3: Clasificación funcional del gasto al que corresponde el programa presupuestario | E3: Nombre de la dependencia o entidad que lo ejecuta | F3: Aprobado | G3: Modificado | H3: Devengado | I3: Ejercido | J3: Pagado | K3: Cuenta con MIR (SI/NO) | L3: Nivel de la MIR del programa | M3: Descripción del resumen narrativo (FIN, Propósito, componentes y actividades) | N3: Nombre del Indicador | O3: Nivel de la MIR, al que corresponde el indicador | P3: Fórmula de cálculo | Q3: Descripción de variables de la fórmula | R3: Meta del indicador Programada | S3: Meta del indicador Modificada | T3: Meta del indicador alcanzada | U3: Valor del numerador de la formula | V3: Valor del denominador de la formula | W3: Unidad de medida de las variables del indicador
A4: 1 | B4: 2 | C4: 3 | D4: 4 | E4: 5 | F4: 6 | G4: 7 | H4: 8 | I4: 9 | J4: 10 | K4: 11 | L4: 12 | M4: 13 | N4: 14 | O4: 15 | P4: 16 | Q4: 17 | R4: 18 | S4: 19 | T4: 20 | U4: 21 | V4: 22 | W4: 23
A5: P. | D5: 132 | E5: PLANEACION IRAPUATO | F5: =SUM(F12:F23) -> 28,340,941.56 | G5: =SUM(G12:G23) -> 33,609,645.48 | H5: =SUM(H12:H23) -> 30,311,331.48 | I5: 1,352,104.02 | J5: 23,430,418.86 | K5: si | L5: PGR | M5: PLANEACION INCLUYENTE, PARTICIPACION CIUDADANA | R5: 100% | S5: 100% | T5: =+H5/G5 -> 90% | U5: =+H5 -> 30,311,331.48 | V5: =+G5 -> 33,609,645.48 | W5: %
A6: P. | D6: 132 | E6: PLANEACION IRAPUATO | F6: =+F5 -> 28,340,941.56 | G6: =+G5 -> 33,609,645.48 | H6: =+H5 -> 30,311,331.48 | I6: 1,352,104.02 | J6: 23,430,418.86 | K6: si | L6: fin | M6: Contribuir a superar los estándares de sustentabilidad del municipio mediante la adecuada operación, administración e implementación | N6: Indice de Competitividad urbana (IMCO), entre las ciudades mayores a 500 mil habitantes a 1 millon de habitantes | O6: PGR | P6: Puntos ≥ | Q6: ≥ al puntaje 46.39 del Índice de Competitividad urbana (IMCO), entre las ciudades mayores a 500 mil habitantes a 1 millón de habitantes | R6: 46.39 | S6: 100% | T6: =+H6/G6 -> 90% | U6: =+H6 -> 30,311,331.48 | V6: =+G6 -> 33,609,645.48 | W6: %
A7: P. | D7: 132 | E7: PLANEACION IRAPUATO | F7: =+F23 -> 9,808,848.10 | G7: =+G23 -> 9,808,848.10 | H7: =+H23 -> 8,356,007.77 | I7: 211,297.89 | J7: 8,144,709.88 | K7: si | L7: Proposito | M7: Sistema de Planeación del Municipio de Irapuato opera, se administra y se implementa satisfactoriamente. | N7: Porcentaje de cumplimiento de la operación, administración e implementación del Sistema Municipal de Planeación | O7: Proposito | P7: Porcentaje | Q7: %OAI_SIMUPLAN=(IAI*0.50)+(IGAIM*0.50) Donde: %OAI_SIMUPLAN: Porcentaje de cumplimiento de la operación, administración e implementación del Sistema Municipal de Planeación %AI: Porcentaje de aplicación de instrumentos de planeación municipal %GAIM: Porcentaje de Cumplimiento de la Gestión Administrativa del IMPLAN | R7: 100% | S7: 100% | T7: 85% | U7: 8,356,007.77 | V7: 9,808,848.10 | W7: %
A8: P. | D8: 132 | E8: PLANEACION IRAPUATO | F8: =+F12+F13 -> 16,515,915.46 | G8: =+G12+G13 -> 22,585,048.98 | H8: =+H12+H13 -> 20,935,083.44 | I8: 1,132,587.13 | J8: 14,273,687.71 | K8: si | L8: Componente C5 | M8: Instrumentos de planeación municipal aplicados. | N8: Porcentaje de aplicación de instrumentos de planeación municipal | O8: Componente | P8: porcentaje | Q8: %AI = (PBRalin / PBRtotal) *100 Donde: %AI: Porcentaje de aplicación de instrumentos de planeación municipal PBRalin: PBRs de la Administración Pública Municipal alineados a los instrumentos de planeación PBRtotal: Total de PBRs de la Administración Pública Municipal | R8: 100% | S8: 100% | T8: 93% | U8: 20,935,083.44 | V8: 22,585,048.98 | W8: %
A9: P. | D9: 132 | E9: PLANEACION IRAPUATO | F9: =+F14+F15+F16 -> 775,451.00 | G9: =+G14+G15+G16 -> 441,359.56 | H9: =+H14+H15+H16 -> 350,655.83 | I9: =+I14+I15+I16 -> 2,802.00 | J9: 347,853.83 | K9: si | L9: Componente C6 | M9: Instrumentos de planeación municipal monitoreados y evaluados | N9: Porcentaje de Monitoreo y Evaluación de los Instrumentos de Planeación Municipal | O9: Componente | P9: porcentaje | Q9: %IE=(NIe/NIp)*100 %IE: Porcentaje de Monitoreo y Evaluación de los Instrumentos de Planeación Municipal NIe: Numero de indicadores monitoreados de los instrumento de planeación NIp: Número total de indicadores publicados en los instrumentos de planeación | R9: 30% | S9: 30% | T9: 79% | U9: 350,655.83 | V9: 441,359.56 | W9: %
A10: P. | D10: 132 | E10: PLANEACION IRAPUATO | F10: =+F17+F18+F19 -> 646,200.00 | G10: =+G17+G18+G19 -> 401,211.00 | H10: =+H17+H18+H19 -> 345,975.59 | I10: 2,615.00 | J10: 343,360.59 | K10: si | L10: Componente C7 | M10: Ciudadanía y COPLADEMI en el Sistema Municipal de Planeación involucrados | N10: Porcentaje de participación social en el Proceso de Planeación | O10: Componente | P10: porcentaje | Q10: %PS=(EPS/EPP)*100 %PS= Porcentaje de participación social en el Proceso de Planeación EPS= Etapas del Proceso de Planeación con Participación Social EPP=Etapas del Proceso de Planeación (Planeación, Programación, Monitoreo, Evaluación) | R10: 50% | S10: 50% | T10: 86% | U10: 345,975.59 | V10: 401,211.00 | W10: %
A11: P. | D11: 132 | E11: PLANEACION IRAPUATO | F11: =+F20+F21+F22 -> 594,527.00 | G11: =+G20+G21+G22 -> 373,177.84 | H11: =+H20+H21+H22 -> 323,608.85 | I11: 2,802.00 | J11: 320,806.85 | K11: si | L11: Componente C8 | M11: Planeación organizacional del IMPLAN fortalecida. | N11: Porcentaje de Cumplimiento de la Gestión Administrativa del IMPLAN | O11: Componente | P11: porcentaje | Q11: %GAIM=(IOI*0.50)+(ITRF*0.50) %GAIM= Porcentaje de Cumplimiento de la Gestión Administrativa del IMPLAN %OI = Porcentaje de Cumplimiento de operación del IMPLAN %TRF = Porcentaje de cumplimiento de Transparencia y Recursos Financieros | R11: 100% | S11: 100% | T11: 87% | U11: 323,608.85 | V11: 373,177.84 | W11: %
A12: P. | B12: P00030501 | C12: Actualización de los Instrumentos de Planeación y Programas derivados | D12: 132 | E12: PLANEACION IRAPUATO | F12: 16,142,508.46 | G12: 22,418,880.98 | H12: 20,793,778.71 | I12: 1,114,264.51 | J12: 14,150,705.60 | K12: si | L12: Actividad | M12: =+C12 -> Actualización de los Instrumentos de Planeación y Programas derivados | N12: Porcentaje de instrumentos normativos actualizados | O12: Actividad | P12: porcentaje | Q12: %IPda = (IPda / IPn) *100 Donde: %IPda: Porcentaje de Instrumentos de Planeación Normativos actualizados IPda: Número de Instrumentos de Planeación actualizados en el año 2023 IP: Número de instrumentos de Planeación que requieren actualización | R12: 50% | S12: 50% | T12: 93% | U12: 20,793,778.71 | V12: =+G12 -> 22,418,880.98 | W12: %
A13: P. | B13: P00030502 | C13: Fortalecimiento del Sistema de Información Estadística y Geográfica (SICAMI) | D13: 132 | E13: PLANEACION IRAPUATO | F13: 373,407.00 | G13: 166,168.00 | H13: 141,304.73 | I13: 18,322.62 | J13: 122,982.11 | K13: si | L13: Actividad | M13: =+C13 -> Fortalecimiento del Sistema de Información Estadística y Geográfica (SICAMI) | N13: Porcentaje de Cumplimiento de procesos de asistencia técnica, monitoreo y capacitación relacionado con la infraestructura y software de SICAMI en las 23 dependencias y entidades, | O13: Actividad | P13: porcentaje | Q13: Pat_SICAMI = (NoSICAMI2023 / NoSICAMI2023Prog)*100 Donde: Pat_SICAMI: Porcentaje de cumplimiento de procesos de asistencia técnica, monitoreo y capacitación relacionado con la infraestructura y software de SICAMI en las 28 dependencias y entidades. NoSICAMI2023: Número de procesos realizados de asistencia técnica que ofrece el implan relacionado con SICAMI en cada área de la Administración Publica Municipal NoSICAMI2023Prog: Número de procesos programados de asistencia técnica que ofreció el implan relacionado con SICAMI en cada área de la Administración Publica Municipal | R13: 100% | S13: 100% | T13: 85% | U13: 141,304.73 | V13: =+G13 -> 166,168.00 | W13: %
A14: P. | B14: P00030601 | C14: Fortalecimiento a la evaluacion de los instrumentos de planeación con las dependencias y entidades municipales | D14: 132 | E14: PLANEACION IRAPUATO | F14: 255,899.00 | G14: 144,477.16 | H14: 123,918.05 | I14: 934.00 | J14: 122,984.05 | K14: si | L14: Actividad | M14: Fortalecimiento a la evaluacion de los instrumentos de planeación con las dependencias y entidades municipales | N14: Implementacion y Consolidacion Modulo Digital de Indicadores del Sistema de Planeacion Municipal | O14: Actividad | P14: porcentaje | Q14: %SI = (SI_REAL / SI_PROGRAMADO)*100 Donde: %SI: Porcentaje de Cumplimiento de ña Implementación y Consolidación Módulo Digital de Indicadores del Sistema de Planeación Municipal SI_REAL: Avance real de consolidación del Modulo Digital de Indicadores SI_PROGRAMADO: Avance programado de consolidación del Modulo Digital de Indicadores | R14: 60% | S14: 60% | T14: 86% | U14: 123,918.05 | V14: 144,477.16 | W14: %
A15: P. | B15: P00030602 | C15: Fortalecimiento al seguimiento de los Instrumentos de Planeación | D15: 132 | E15: PLANEACION IRAPUATO | F15: 255,897.00 | G15: 143,453.40 | H15: 93,700.55 | I15: 934.00 | J15: 92,766.55 | K15: si | L15: Actividad | M15: Fortalecimiento al seguimiento de los Instrumentos de Planeación | N15: Porcentaje de dictámenes y opiniones técnicas armonizados con los Instrumentos de Planeación | O15: Actividad | P15: Porcentaje | Q15: %DC_IP= (SAt/SR) *100 %DC_IP= Porcentaje de dictámenes armonizados con Instrumentos de Planeación SAt= Solicitudes atendidas por el IMPLAN armonizados y congruentes con los instrumentos de planeación SR= Solicitudes recibidas. | R15: 100% | S15: 100% | T15: 65% | U15: 93,700.55 | V15: 143,453.40 | W15: %
A16: P. | B16: P00030603 | C16: Impulso a la participación ciudadana en procesos de monitoreo, evaluación y seguimiento de los instrumentos de planeación. | D16: 132 | E16: PLANEACION IRAPUATO | F16: 263,655.00 | G16: 153,429.00 | H16: 133,037.23 | I16: 934.00 | J16: 132,103.23 | K16: si | L16: Actividad | M16: Impulso a la participación ciudadana en procesos de monitoreo, evaluación y seguimiento de los instrumentos de planeación. | N16: Porcentaje de dictámenes y opiniones técnicas armonizados con los Instrumentos de Planeación | O16: Actividad | P16: Porcentaje | Q16: %PC = (AR/AP)*100 Donde: %PC: Porcentaje de participación ciudadana en el proceso de planeación AR: Acciones realizadas para la participación ciudadana en procesos de monitoreo, evaluación y seguimiento de los instrumentos de planeación. AP: Acciones programadas para la participación ciudadana en procesos de monitoreo, evaluación y seguimiento de los instrumentos de planeación, lo que representa 5 acciones. | R16: 100% | S16: 100% | T16: 87% | U16: 133,037.23 | V16: 153,429.00 | W16: %
A17: P. | B17: P00030701 | C17: Fortalecimiento a la participación del COPLADEMI en los procesos de planeación y evaluación | D17: 132 | E17: PLANEACION IRAPUATO | F17: 290,790.00 | G17: 167,844.00 | H17: 139,314.41 | I17: 934.00 | J17: 138,380.41 | K17: si | L17: Actividad | M17: Fortalecimiento a la participación del COPLADEMI en los procesos de planeación y evaluación | N17: Porcentaje de instrumentos de planeación validados por el COPLADEMI. | O17: Actividad | P17: porcentaje | Q17: P_IPVAL= (Número de instrumentos aprobados por el COPLADEMI en 2022 /número Instrumentos presentados ante el COPLADEMI en el año 2022) *100 | R17: 100% | S17: 100% | T17: 83% | U17: 139,314.41 | V17: 167,844.00 | W17: %
A18: P. | B18: P00030702 | C18: Difusión del sistema de planeación para conocimiento de la ciudadanía | D18: 132 | E18: PLANEACION IRAPUATO | F18: 226,168.00 | G18: 145,547.00 | H18: 128,622.85 | I18: 934.00 | J18: 127,688.85 | K18: si | L18: Actividad | M18: Difusión del sistema de planeación para conocimiento de la ciudadanía | N18: Porcentaje de avance en la implementacion en la estrategia de difusion de los instrumentos de Planeacion | O18: Actividad | P18: porcentaje | Q18: % de implementación de estrategia de difusión = (avance de la implementación de la estrategia/ avance programado ) *100 AP = (4 boletines anuales * 0.4) + (100% instrumentos publicados pagina web *0.3)+ (visitas pagina web anuales igual o mayor a 4000 *0.3) | R18: 100% | S18: 100% | T18: 88% | U18: 128,622.85 | V18: 145,547.00 | W18: %
A19: P. | B19: P00030703 | C19: Vinculación del Sistema de Planeación con los Organismos Intermedios y las Instituciones Educativas. | D19: 132 | E19: PLANEACION IRAPUATO | F19: 129,242.00 | G19: 87,820.00 | H19: 78,038.33 | I19: 747.00 | J19: 77,291.33 | K19: si | L19: Actividad | M19: Vinculación del Sistema de Planeación con los Organismos Intermedios y las Instituciones Educativas. | N19: Porcentaje de avance en la implementacion en la estrategia de difusion de los instrumentos de Planeacion | O19: Actividad | P19: porcentaje | Q19: Vinc = (Vinc2023 realizadas / Vinc2023 Programadas)*100 Donde: Vinc: Porcentaje de cumplimiento de acciones de vinculación de los instrumentos de planeación con los organismos intermedios y las instituciones educativas Vinc2023 realizadas: Número de acciones de vinculación de los instrumentos de planeación con los organismos intermedios y las instituciones educativas llevadas a cabo en el presente año Vinc2023 Programadas: Número de acciones de vinculación programadas de los instrumentos de planeación con los organismos intermedios y las instituciones educativas | R19: 100% | S19: 100% | T19: 89% | U19: 78,038.33 | V19: 87,820.00 | W19: %
A20: P. | B20: P00030801 | C20: Fortalecimiento de la estructura y operación del IMPLAN | D20: 132 | E20: PLANEACION IRAPUATO | F20: 208,082.00 | G20: 124,523.84 | H20: 106,390.20 | I20: 934.00 | J20: 105,456.20 | K20: si | L20: Actividad | M20: Fortalecimiento de la estructura y operación del IMPLAN | N20: Índice de operación del IMPLAN | O20: Actividad | P20: Porcentaje de incremento | Q20: %OI (Porcentaje de Cumplimiento de operación del IMPLAN) = ((CP * 0.5) + (RH * 0.5)) * 100 CP= Cuenta Pública = (# informes cumplidos/# informes requeridos por normatividad) RH= Manejo de Recursos Humanos = (Gestión de Nómina*0.4)+(Gestión de incidencias*0.3)+(Gestión de asistencias*0.3) | R20: 100% | S20: 100% | T20: 85% | U20: 106,390.20 | V20: 124,523.84 | W20: %
A21: P. | B21: P00030802 | C21: Capacitación del cuerpo técnico del IMPLAN para que sea multidisciplinario y conocimientos de vanguardia | D21: 132 | E21: PLANEACION IRAPUATO | F21: 208,070.00 | G21: 139,417.00 | H21: 123,053.85 | I21: 934.00 | J21: 122,119.85 | K21: si | L21: Actividad | M21: Capacitación del cuerpo técnico del IMPLAN para que sea multidisciplinario y conocimientos de vanguardia | N21: Porcentaje de capacitaciones recibidas por integrantes del Cuerpo tecnico del Instituto | O21: Actividad | P21: Porcentaje de incremento | Q21: Porcentaje de capacitaciones recibidas = ( capacitaciones recibidas en el año 2023 / capacitaciones programadas en el año 2023 ) *100 | R21: 100% | S21: 100% | T21: 88% | U21: 123,053.85 | V21: 139,417.00 | W21: %
A22: P. | B22: P00030803 | C22: Seguimiento a obligaciones normativas en materia de Transparencia y Recursos Financieros | D22: 132 | E22: PLANEACION IRAPUATO | F22: 178,375.00 | G22: 109,237.00 | H22: 94,164.80 | I22: 934.00 | J22: 93,230.80 | K22: si | L22: Actividad | M22: Seguimiento a obligaciones normativas en materia de Transparencia y Recursos Financieros | N22: Porcentaje de capacitaciones recibidas por integrantes del Cuerpo tecnico del Instituto | O22: Actividad | P22: Porcentaje de incremento | Q22: %TRF (Porcentaje de cumplimiento de Transparencia y Recursos Financieros) = ((Transp*0.5) + (CSHCP*0.5)) * 100 Transp= (Solicitudes atendidas de la Unidad de Transparencia/solicitudes recibidas de la Unidad de Transparencia) CSHCP = Declaraciones ante SHCP (# informes cumplidos/# informes requeridos por normatividad) | R22: 100% | S22: 100% | T22: 86% | U22: 94,164.80 | V22: 109,237.00 | W22: %
A23: P. | C23: SERVICIOS PERSONALES | D23: 132 | E23: PLANEACION IRAPUATO | F23: 9,808,848.10 | G23: 9,808,848.10 | H23: 8,356,007.77 | I23: 211,297.89 | J23: 8,144,709.88 | K23: si | L23: Actividad | M23: SERVICIOS PERSONALES | N23: =+N6 -> Indice de Competitividad urbana (IMCO), entre las ciudades mayores a 500 mil habitantes a 1 millon de habitantes | O23: Capitulo 1000 | P23: porcentaje | R23: 100% | S23: 100% | T23: 85% | U23: 8,356,007.77 | V23: 9,808,848.10 | W23: %

Sheet Instructivo_INR
B1: Recomendación:
B2: En caso de no contar con la información señalada en cada campo indicar N/D (no Disponible) o N/A en el caso de que no aplique la información requerida. Nota: esta recomendación no aplica en las columnas 6 al 10 dado lo comentado en el punto 14.
A4: Columna | B4: Instructivo
A5: 1 | B5: Seleccionar la clasificación programática de acuerdo al CONAC, a la que se encuentra vinculada el programa presupuestario. Consultar clasificación disponible en: https://www.conac.gob.mx/work/models/CONAC/normatividad/NOR_01_02_004.pdf
A6: 2 | B6: Indicar la clave que se le asignó al programa presupuestario la cual debe iniciar con la letra que señale el acuerdo por el que se emite la clasificación programática del gasto emitido por el CONAC. Consultar clasificación disponible en: https://www.conac.gob.mx/work/models/CONAC/normatividad/NOR_01_02_004.pdf
A7: 3 | B7: Indicar la denominación que se le haya otorgado al programa presupuestario. El nombre del programa presupuestario no debe ser el mismo que el de la Unidad Responsable.
A8: 4 | B8: Seleccionar la clasificación funcional del gasto al que corresponde el programa presupuestario acorde al Acuerdo emitido por el CONAC, esto es: DESARROLLO SOCIAL, DESARROLLO ECONÓMICO, GOBIERNO, OTROS. Consultar clasificación disponible en: https://www.conac.gob.mx/work/models/CONAC/normatividad/NOR_01_02_003.pdf
A9: 5 | B9: Señalar el nombre completo de la o las dependencias o entidades que ejecutan el programa presupuestario.
A10: 6 | B10: Indicar el importe del presupuesto aprobado para el programa presupuestario. Nota: en caso de contar con datos del presupuesto aprobado a nivel actividad de la MIR del programa, indicar el importe en cada una; la suma del importe de todas las actividades debe corresponder con el valor señalado al importe aprobado del componente asociado, asimismo, la suma total del importe de los componentes debe corresponder con el importe indicado en la fila del PROPOSITO y finalmente, éste debe ser el mismo que el importe del nivel FIN.
A11: 7 | B11: Indicar el importe del presupuesto modificado para el programa presupuestario a la fecha en que se reporta. Nota: en caso de contar con datos del presupuesto modificado a nivel actividad de la MIR del programa, indicar el importe en cada una; la suma del importe de todas las actividades debe corresponder con el valor señalado al importe del componente asociado, asimismo, la suma total del importe de los componentes debe corresponder con el importe indicado en la fila del PROPOSITO y finalmente, éste debe ser el mismo que el importe del nivel FIN.
A12: 8 | B12: Indicar el importe del presupuesto devengado para el programa presupuestario a la fecha en que se reporta. Nota: en caso de contar con datos del presupuesto devengado a nivel actividad de la MIR del programa, indicar el importe en cada una; la suma del importe de todas las actividades debe corresponder con el valor señalado al importe del componente asociado, asimismo, la suma total del importe de los componentes debe corresponder con el importe indicado en la fila del PROPOSITO y finalmente, éste debe ser el mismo que el importe del nivel FIN.
A13: 9 | B13: Indicar el importe del presupuesto ejercido para el programa presupuestario a la fecha en que se reporta. Nota: en caso de contar con datos del presupuesto ejercido a nivel actividad de la MIR del programa, indicar el importe en cada una; la suma del importe de todas las actividades debe corresponder con el valor señalado al importe del componente asociado, asimismo, la suma total del importe de los componentes debe corresponder con el importe indicado en la fila del PROPOSITO y finalmente, éste debe ser el mismo que el importe del nivel FIN.
A14: 10 | B14: Indicar el importe del presupuesto pagado para el programa presupuestario a la fecha en que se reporta. Nota: en caso de contar con datos del presupuesto pagado a nivel actividad de la MIR del programa, indicar el importe en cada una; la suma del importe de todas las actividades debe corresponder con el valor señalado al importe del componente asociado, asimismo, la suma total del importe de los componentes debe corresponder con el importe indicado en la fila del PROPOSITO y finalmente, éste debe ser el mismo que el importe del nivel FIN.
A15: 11 | B15: Indicar si para el programa presupuestario se elaboró su Matriz de Indicadores para Resultados, (MIR).
A16: 12 | B16: Seleccionar el nivel de la MIR del programa presupuestario a describir FIN, PROPÓSITO, COMPONENTE O ACTIVIDAD.
A17: 13 | B17: Descripción del FIN, PROPÓSITO, COMPONENTES Y ACTIVIDADES de la MIR del Programa Presupuestario
A18: 14 | B18: Descripción del nombre asignado al indicador, ejemplo: "Índice de marginación en Guanajuato", en caso de no contar con información del indicador se deberán atender las recomendaciones del instructivo. Nota: por cada indicador deberán rellenarse los datos de las columnas 1 a 5 y de la 11 a 13, excepto las columnas 6 a la 10, debido a que en éstas se deberá indicar únicamente los importes del FIN, PROPOSITO, COMPONENTES Y ACTIVIDADES.
A19: 15 | B19: Indicar si el indicador corresponde al nivel de FIN, PROPÓSITO, COMPONENTE O ACTIVIDAD de la MIR
A20: 16 | B20: Se refiere a la expresión matemática del indicador. Determina la forma en que se relacionan las variables.
A21: 17 | B21: Describir el significado de las variables de la fórmula del indicador
A22: 18 | B22: Señalar la meta aprobada del indicador para el ejercicio en que se reporta.
A23: 19 | B23: Señalar la meta modificada del indicador para el periodo en que se reporta.
A24: 20 | B24: Señalar la meta alcanzada del indicador para el periodo en que se reporta.
A25: 21 | B25: Indicar la cantidad que se obtuvo al periodo que se reporta respecto al numerador de la fórmula del indicador
A26: 22 | B26: Indicar la cantidad que se obtuvo al periodo que se reporta respecto al denominador de la fórmula del indicador
A27: 23 | B27: Indicar la unidad de medida que tienen las variables del indicador, (alumnos, profesores, áreas naturales protegidas, áreas reforestadas).

Sheet Hoja1 (hidden)
A1: S Sujetos a Reglas de Operación | B1: Desarrollo Social | C1: FIN
A2: U Otros Subsidios | B2: Desarrollo Económico | C2: PROPÓSITO
A3: E Prestación de Servicios Públicos | B3: Gobierno y Finanzas | C3: COMPONENTE
A4: B Provisión de Bienes Públicos | B4: Otros | C4: ACTIVIDAD
A5: P Planeación, seguimiento y evaluación de políticas públicas
A6: F Promoción y fomento
A7: G Regulación y supervisión
A8: A Funciones de las Fuerzas Armadas (Únicamente Gobierno Federal)
A9: R Específicos
A10: K Proyectos de Inversión
A11: M Apoyo al proceso presupuestario y para mejorar la eficiencia institucional
A12: O Apoyo a la función pública y al mejoramiento de la gestión
A13: W Operaciones ajenas
A14: L Obligaciones de cumplimiento de resolución jurisdiccional
A15: N Desastres Naturales
A16: J Pensiones y jubilaciones
A17: T Aportaciones a la seguridad social
A18: Y Aportaciones a fondos de estabilización
A19: Z Aportaciones a fondos de inversión y reestructura de pensiones
A20: I Gasto Federalizado
A21: C Participaciones a entidades federativas y municipios
A22: D Costo financiero, deuda o apoyos a deudores y ahorradores de la banca
A23: H Adeudos de ejercicios fiscales anteriores
